bitfinex/quotes_SOLUSD_20251124
["timestamp","ask_amount","ask_price","bid_price","bid_amount"]
[1763959007716,0.14161895,131.55,131.54,4.63271509]
[1763959007919,0.85161895,131.55,131.49,0.7]
[1763959008128,0.85161895,131.55,131.51,4.63271509]
[1763959008847,0.85161895,131.55,131.52,4.63271509]
[1763959009236,0.85161895,131.55,131.51,4.63271509]
[1763959010164,0.85161895,131.55,131.5,4.63271509]
[1763959010328,0.85161895,131.55,131.52,4.63271509]
[1763959011038,0.85161895,131.55,131.5,0.7]
[1763959011239,0.85161895,131.55,131.52,4.63271509]
[1763959011953,0.85161895,131.55,131.53,4.63271509]
[1763959012325,0.14161895,131.55,131.54,4.63271509]
[1763959013151,0.14161895,131.55,131.54,5.33271509]
[1763959013732,0.14161895,131.55,131.54,4.63271509]
[1763959014241,0.14161895,131.55,131.54,5.33271509]
[1763959015147,0.14161895,131.55,131.54,12.93496535]
[1763959015559,0.14161895,131.55,131.54,5.33271509]
[1763959016264,0.14161895,131.55,131.54,23.45367509]
[1763959016945,0.71,131.61,131.54,23.45367509]
[1763959017146,0.71,131.61,131.55,0.7]
[1763959017363,0.15546631,131.56,131.55,0.7]
[1763959018033,0.15546631,131.56,131.55,5.33271509]
[1763959019062,0.15546631,131.56,131.55,4.63271509]
[1763959019372,5.4981814,131.56,131.48,0.7]
[1763959019547,4.63271509,131.55,131.49,4.63271509]
[1763959019734,4.63271509,131.54,131.49,4.63271509]
[1763959019935,5.34271509,131.54,131.49,4.63271509]
[1763959020153,0.71,131.53,131.49,4.63271509]
[1763959020531,12.55007756,131.53,131.48,11.84007756]
[1763959020736,0.71,131.52,131.47,0.2]
[1763959020966,12.55007756,131.52,131.47,0.2]
[1763959021151,0.71,131.52,131.49,11.84007756]
[1763959021464,0.71,131.51,131.49,11.84007756]
[1763959022545,0.71,131.51,131.47,12.04007756]
[1763959023170,0.71,131.51,131.49,11.84007756]
[1763959024461,0.71,131.51,131.48,11.84007756]
[1763959024667,0.71,131.51,131.47,12.04007756]
[1763959025237,0.71,131.51,131.47,0.2]
[1763959026667,0.71,131.51,131.47,12.04007756]
[1763959027163,18.83096,131.51,131.48,11.84007756]
[1763959027654,0.71,131.5,131.48,11.84007756]
[1763959028473,0.71,131.5,131.47,0.2]
[1763959029466,18.12096,131.53,131.48,11.84007756]
[1763959029661,0.71,131.52,131.48,11.84007756]
[1763959029968,0.71,131.52,131.47,12.04007756]
[1763959031853,0.71,131.52,131.48,11.84007756]
[1763959032650,0.71,131.52,131.47,12.04007756]
[1763959034171,0.71,131.52,131.48,11.84007756]
[1763959034555,0.71,131.52,131.49,11.84007756]
[1763959035459,0.71,131.52,131.48,11.84007756]
[1763959036151,0.71,131.52,131.47,0.91]
[1763959036351,0.71,131.52,131.48,11.84007756]
[1763959036972,18.12096,131.53,131.5,11.84007756]
[1763959037172,18.12096,131.53,131.51,11.84007756]
[1763959037357,0.14232591,131.52,131.51,11.84007756]
[1763959038246,0.14232591,131.52,131.49,0.71]
[1763959038455,0.81232591,131.52,131.51,11.84007756]
[1763959038667,0.14232591,131.52,131.51,6.95271106]
[1763959039579,0.14232591,131.52,131.49,0.71]
[1763959039982,0.14232591,131.52,131.51,6.95271106]
[1763959040153,0.14232591,131.52,131.5,6.95271106]
[1763959040647,0.14232591,131.52,131.51,7.66271106]
[1763959041347,0.15816978,131.53,131.51,7.66271106]
[1763959041587,0.16413447,131.54,131.52,7.66271106]
[1763959041879,0.16413447,131.54,131.53,7.66271106]
[1763959042665,0.16413447,131.54,131.53,3.67410703]
[1763959044373,0.16413447,131.54,131.53,2.96410703]
[1763959045069,0.16413447,131.54,131.53,3.67410703]
[1763959045250,0.143061,131.55,131.53,11.27693528]
[1763959045580,0.143061,131.55,131.54,3.67410703]
[1763959048086,0.143061,131.55,131.54,12.03658231]
[1763959048273,0.13942939,131.57,131.55,3.67410703]
[1763959048594,0.13942939,131.57,131.56,7.07410703]
[1763959048878,0.13942939,131.57,131.56,4.11]
[1763959049091,0.13942939,131.57,131.56,7.07410703]
[1763959049584,0.13942939,131.57,131.56,2.96410703]
[1763959049780,0.80942939,131.57,131.56,2.96410703]
[1763959049962,0.13942939,131.57,131.56,2.96410703]
[1763959050363,0.13942939,131.57,131.54,62.81]
[1763959050567,0.13942939,131.57,131.56,2.96410703]
[1763959051458,0.80942939,131.57,131.55,2.96410703]
[1763959051665,0.80942939,131.57,131.53,2.96410703]
[1763959054373,2.96410703,131.56,131.51,2.96410703]
[1763959054563,18.93038939,131.57,131.51,2.96410703]
[1763959054872,0.67,131.56,131.51,2.96410703]
[1763959055260,0.67,131.56,131.52,2.96410703]
[1763959057411,0.15747422,131.53,131.52,2.96410703]
[1763959057591,0.15747422,131.53,131.49,0.71]
[1763959057883,0.82747422,131.53,131.51,2.96410703]
[1763959058270,0.15747422,131.53,131.52,2.96410703]
[1763959058469,0.82747422,131.53,131.52,2.96410703]
[1763959058884,0.15747422,131.53,131.52,2.96410703]
[1763959060369,0.82747422,131.53,131.52,2.96410703]
[1763959061977,0.15747422,131.53,131.52,2.96410703]
[1763959062297,0.82747422,131.53,131.52,2.96410703]
[1763959062494,0.15747422,131.53,131.52,65.77410703]
[1763959062670,0.15747422,131.53,131.52,6.63821406]
[1763959062867,0.15747422,131.53,131.52,3.67410703]
[1763959063982,0.85747422,131.53,131.51,0.76039844]
[1763959064190,0.15747422,131.53,131.52,2.96410703]
[1763959064989,0.15747422,131.53,131.5,0.7]
[1763959065193,0.85747422,131.53,131.52,2.96410703]
[1763959065388,0.85747422,131.53,131.51,2.96410703]
[1763959067286,0.15747422,131.53,131.52,3.68410703]
[1763959068279,0.15747422,131.53,131.52,6.64821406]
[1763959069903,0.15747422,131.53,131.52,3.68410703]
[1763959070482,0.15747422,131.53,131.52,2.96410703]
[1763959071691,0.86747422,131.53,131.48,18.84096]
[1763959071882,0.86747422,131.53,131.52,2.96410703]
[1763959071883,0.15747422,131.53,131.52,2.96410703]
[1763959072574,0.15747422,131.53,131.52,3.68410703]
[1763959072772,0.15747422,131.53,131.52,2.96410703]
[1763959073899,0.15747422,131.53,131.52,3.68410703]
[1763959074581,0.15747422,131.53,131.52,7.66819978]
[1763959075500,0.15747422,131.53,131.52,6.66819978]
[1763959076785,0.71,131.55,131.52,6.66819978]
[1763959077102,0.71,131.57,131.54,6.94819978]
[1763959077301,0.15636895,131.57,131.56,6.94819978]
[1763959077702,0.86636895,131.57,131.51,65.5]
[1763959078006,0.86636895,131.57,131.55,6.94819978]
[1763959078391,0.86636895,131.57,131.54,6.94819978]
[1763959080208,0.86636895,131.57,131.53,6.94819978]
[1763959080390,0.86636895,131.57,131.52,6.94819978]
[1763959080597,7.81456873,131.57,131.52,6.94819978]
[1763959081099,0.71,131.56,131.52,6.94819978]
[1763959081908,0.71,131.56,131.48,3.4]
[1763959082079,7.65819978,131.56,131.51,6.94819978]
[1763959082708,0.71,131.55,131.51,6.94819978]
[1763959083407,0.71,131.55,131.52,6.94819978]
[1763959085299,0.71,131.55,131.51,6.94819978]
[1763959086400,0.15636895,131.57,131.54,6.94819978]
[1763959086716,0.71,131.56,131.53,6.94819978]
[1763959087091,0.71,131.56,131.54,6.94819978]
[1763959087608,0.15636895,131.57,131.55,6.94819978]
[1763959087804,0.86636895,131.57,131.56,6.94819978]
[1763959088900,0.15636895,131.57,131.56,6.44819978]
[1763959089112,0.86636895,131.57,131.56,6.44819978]
[1763959089610,0.86636895,131.57,131.51,62.24]
[1763959089806,0.86636895,131.57,131.56,6.94819978]
[1763959090694,0.86636895,131.57,131.55,6.94819978]
[1763959091884,0.86636895,131.57,131.51,65.5]
[1763959092100,0.86636895,131.57,131.55,6.94819978]
[1763959093011,0.86636895,131.57,131.56,6.94819978]
[1763959093204,18.98732895,131.57,131.51,62.1]
[1763959093398,18.98732895,131.57,131.54,6.94819978]
[1763959093597,0.71,131.56,131.54,6.94819978]
[1763959094120,0.71,131.56,131.51,62.1]
[1763959094319,0.71,131.56,131.51,69.04819978]
[1763959094617,11.05819978,131.56,131.5,6.94819978]
[1763959094798,11.05819978,131.56,131.49,6.94819978]
[1763959094799,18.12096,131.54,131.49,6.94819978]
[1763959095303,0.71,131.53,131.49,6.94819978]
[1763959095705,0.71,131.53,131.47,3.6]
[1763959095906,0.71,131.53,131.49,6.94819978]
[1763959096309,0.71,131.53,131.48,6.94819978]
[1763959096617,0.71,131.53,131.48,2.96774818]
[1763959097213,0.15559286,131.49,131.47,0.2]
[1763959097596,0.86559286,131.49,131.47,0.2]
[1763959097901,0.86559286,131.49,131.47,3.16774818]
[1763959098913,0.15559286,131.49,131.48,2.96774818]
[1763959099114,0.86559286,131.49,131.48,2.96774818]
[1763959100722,0.86559286,131.49,131.48,4.63668628]
[1763959102705,0.86559286,131.49,131.47,0.2]
[1763959102919,0.86559286,131.49,131.48,4.63668628]
[1763959104120,0.15559286,131.49,131.48,4.63668628]
[1763959105303,0.86559286,131.49,131.48,4.63668628]
[1763959106225,0.86559286,131.49,131.47,66.93668628]
[1763959106627,0.86559286,131.49,131.47,62.3]
[1763959108132,0.86559286,131.49,131.47,66.93668628]
[1763959109133,0.86559286,131.49,131.47,4.83668628]
[1763959109335,0.86559286,131.49,131.47,0.2]
[1763959109639,5.50227914,131.49,131.47,0.2]
[1763959110014,5.50227914,131.49,131.45,0.1]
[1763959110015,18.83096,131.48,131.45,0.1]
[1763959110214,4.63668628,131.47,131.45,0.1]
[1763959110414,5.34668628,131.47,131.45,0.1]
[1763959110616,0.71,131.46,131.45,0.1]
[1763959113714,18.83096,131.46,131.45,0.1]
[1763959115439,4.79227914,131.49,131.45,4.73668628]
[1763959115440,0.71,131.48,131.45,4.73668628]
[1763959115821,18.83096,131.48,131.45,4.73668628]
[1763959116232,0.71,131.47,131.45,4.73668628]
[1763959117211,0.14865062,131.46,131.45,4.73668628]
[1763959117723,0.14865062,131.46,131.45,5.07668628]
[1763959118340,0.14683569,131.47,131.45,5.83743181]
[1763959118520,0.143323,131.48,131.46,4.68668628]
[1763959118718,0.143323,131.48,131.47,4.63668628]
[1763959118920,0.143323,131.48,131.47,4.68668628]
[1763959119119,0.143323,131.48,131.47,22.80764628]
[1763959119517,0.1627867,131.5,131.47,30.41394429]
[1763959119722,0.16562662,131.52,131.5,18.12096]
[1763959119958,0.11562662,131.52,131.51,9.27337256]
[1763959120141,0.15943414,131.53,131.51,9.27337256]
[1763959120447,0.15943414,131.53,131.52,9.27337256]
[1763959121321,0.71,131.61,131.52,16.87677888]
[1763959121521,0.71,131.6,131.53,4.63668628]
[1763959121746,0.71,131.6,131.54,4.63668628]
[1763959122149,0.71,131.62,131.54,22.75764628]
[1763959122449,0.71,131.61,131.54,26.15764628]
[1763959122645,0.71,131.61,131.59,11.82058846]
[1763959122851,0.71,131.61,131.6,11.82058846]
[1763959123546,0.2,131.66,131.6,40.94017155]
[1763959123744,0.2,131.66,131.65,11.82058846]
[1763959125554,0.2,131.68,131.65,53.68927702]
[1763959125754,0.2,131.68,131.67,23.64117692]
[1763959127334,0.2,131.7,131.68,19.41475613]
[1763959127532,0.2,131.7,131.68,22.81475613]
[1763959127739,0.2,131.7,131.69,18.12096]
[1763959127942,0.2,131.7,131.69,29.94154846]
[1763959128142,0.2,131.7,131.69,11.82058846]
[1763959130053,0.91,131.7,131.69,11.82058846]
[1763959130351,0.2,131.7,131.69,11.82058846]
[1763959131337,0.2,131.7,131.69,29.94154846]
[1763959132048,0.91,131.7,131.63,32.96157981]
[1763959132357,0.91,131.7,131.69,11.82058846]
[1763959132528,0.91,131.7,131.64,3.4]
[1763959132728,0.71,131.69,131.65,3.4]
[1763959132928,0.71,131.69,131.68,11.82058846]
[1763959133766,0.71,131.69,131.62,3.4]
[1763959133937,0.71,131.69,131.65,11.82058846]
[1763959134332,12.53058846,131.69,131.64,11.82058846]
[1763959134867,0.71,131.68,131.65,11.82058846]
[1763959135245,0.71,131.68,131.67,11.82058846]
[1763959135769,0.71,131.68,131.65,11.82058846]
[1763959136962,0.71,131.68,131.66,11.82058846]
[1763959137360,0.16120705,131.66,131.65,11.82058846]
[1763959137741,0.87120705,131.66,131.65,11.82058846]
[1763959138858,0.16120705,131.66,131.65,11.82058846]
[1763959139368,0.87120705,131.66,131.65,11.82058846]
[1763959139551,0.16120705,131.66,131.65,11.82058846]
[1763959140990,0.16120705,131.66,131.65,19.41648667]
[1763959141137,0.14612511,131.67,131.65,19.41648667]
[1763959141138,0.14612511,131.67,131.65,31.23707513]
[1763959141337,0.14127417,131.68,131.66,42.52166904]
[1763959141561,0.14127417,131.68,131.67,27.04117692]
[1763959141765,0.14127417,131.68,131.67,11.82058846]
[1763959145054,0.14127417,131.68,131.67,19.41533289]
[1763959146057,0.14127417,131.68,131.67,31.23592135]
[1763959146370,0.14127417,131.68,131.67,93.33592135]
[1763959146868,0.16009641,131.69,131.67,93.33592135]
[1763959147065,0.33725946,131.7,131.68,22.17417288]
[1763959147269,0.33725946,131.7,131.69,29.94154846]
[1763959147445,0.33725946,131.7,131.69,33.32154846]
[1763959148764,0.33725946,131.7,131.69,21.50096]
[1763959149064,1.04725946,131.7,131.69,11.82058846]
[1763959149940,1.04725946,131.7,131.68,11.82058846]
[1763959150145,0.71,131.69,131.68,11.82058846]
[1763959150859,0.71,131.69,131.67,11.82058846]
[1763959151046,0.71,131.69,131.66,11.82058846]
[1763959151243,0.71,131.69,131.65,11.82058846]
[1763959151656,0.71,131.69,131.66,11.82058846]
[1763959152582,0.71,131.69,131.65,11.82058846]
[1763959153444,0.71,131.69,131.68,11.82058846]
[1763959153650,0.33725946,131.7,131.68,11.82058846]
[1763959153868,1.04725946,131.7,131.69,11.82058846]
[1763959155466,1.04725946,131.7,131.65,11.82058846]
[1763959155467,30.98880792,131.7,131.65,11.82058846]
[1763959155672,0.71,131.69,131.65,11.82058846]
[1763959155872,0.71,131.69,131.64,11.82058846]
[1763959156256,0.71,131.69,131.68,11.82058846]
[1763959157248,0.84910432,131.69,131.68,11.82058846]
[1763959158654,0.84910432,131.69,131.67,18.12096]
[1763959158854,0.84910432,131.69,131.68,11.82058846]
[1763959162582,0.84910432,131.69,131.68,6.93378369]
[1763959162968,0.84910432,131.69,131.67,6.93378369]
[1763959163181,0.84910432,131.69,131.68,6.93378369]
[1763959164267,0.13910432,131.69,131.68,25.05474369]
[1763959164584,0.13910432,131.69,131.68,32.64891136]
[1763959164763,0.13910432,131.69,131.68,15.28736812]
[1763959165084,0.35395072,131.7,131.68,15.28736812]
[1763959165283,0.35395072,131.7,131.69,10.31378369]
[1763959167283,0.35395072,131.7,131.69,17.90737469]
[1763959167781,0.35395072,131.7,131.69,3.38]
[1763959167957,1.06395072,131.7,131.69,18.12096]
[1763959168161,1.06395072,131.7,131.68,6.93378369]
[1763959168360,0.71,131.69,131.68,6.93378369]
[1763959168556,0.71,131.69,131.59,9.59936164]
[1763959168874,6.93378369,131.68,131.62,6.93378369]
[1763959169075,0.71,131.69,131.64,6.93378369]
[1763959169264,0.71,131.68,131.65,6.93378369]
[1763959170063,0.71,131.68,131.66,6.93378369]
[1763959171487,0.71,131.68,131.65,6.93378369]
[1763959171799,0.71,131.68,131.63,6.93378369]
[1763959172170,0.71,131.68,131.64,6.93378369]
[1763959172582,0.71,131.68,131.66,6.93378369]
[1763959174289,0.71,131.68,131.67,6.93378369]
[1763959174590,0.71,131.68,131.66,6.93378369]
[1763959174970,0.71,131.68,131.64,62.1]
[1763959175173,0.71,131.68,131.65,6.93378369]
[1763959175372,7.64378369,131.68,131.64,62.1]
[1763959175780,0.71,131.67,131.64,62.1]
[1763959175982,0.71,131.67,131.64,6.93378369]
[1763959176368,0.71,131.67,131.63,62.1]
[1763959176572,0.71,131.67,131.64,6.93378369]
[1763959177373,0.16392701,131.65,131.64,6.93378369]
[1763959178089,0.87392701,131.65,131.64,6.93378369]
[1763959178273,0.16392701,131.65,131.64,6.93378369]
[1763959178789,0.87392701,131.65,131.64,6.93378369]
[1763959179289,0.16392701,131.65,131.64,6.93378369]
[1763959180077,0.16392701,131.65,131.64,69.03378369]
[1763959180572,0.87392701,131.65,131.64,62.1]
[1763959180972,0.16392701,131.65,131.64,69.03378369]
[1763959183206,0.16392701,131.65,131.64,6.93378369]
[1763959187529,0.16392701,131.65,131.64,14.53025892]
[1763959188715,0.16392701,131.65,131.64,10.55455265]
[1763959188925,0.16392701,131.65,131.64,13.93455265]
[1763959189105,0.15371906,131.66,131.64,13.93455265]
[1763959189428,0.15371906,131.66,131.65,3.71766724]
[1763959190628,0.15371906,131.66,131.65,15.2882034]
[1763959191607,0.15371906,131.66,131.65,18.6682034]
[1763959196827,0.84371906,131.66,131.61,18.99531532]
[1763959197025,0.15371906,131.66,131.65,6.93271537]
[1763959197233,0.15371906,131.66,131.65,10.31271537]
[1763959197437,0.29219327,131.66,131.65,11.07230519]
[1763959199133,0.29219327,131.66,131.65,18.6682034]
[1763959199446,0.13847421,131.66,131.65,18.6682034]
[1763959201834,0.13847421,131.66,131.63,0.75970523]
[1763959201835,0.82847421,131.66,131.63,0.75970523]
[1763959202026,0.82847421,131.66,131.65,6.93271537]
[1763959202424,0.13847421,131.66,131.65,6.93271537]
[1763959202620,0.13847421,131.66,131.65,7.69230519]
[1763959203351,0.13847421,131.66,131.65,15.2882034]
[1763959203653,0.13847421,131.66,131.65,33.4091634]
[1763959203854,0.13847421,131.66,131.65,15.2882034]
[1763959204249,0.13847421,131.66,131.65,18.6682034]
[1763959204443,0.13847421,131.66,131.65,11.73548803]
[1763959204758,0.13847421,131.66,131.65,18.6682034]
[1763959205051,0.13847421,131.66,131.65,29.19326519]
[1763959206052,0.82847421,131.66,131.65,28.43367537]
[1763959207162,0.15980134,131.67,131.63,61.27152579]
[1763959207453,0.15980134,131.67,131.64,6.93271537]
[1763959208230,0.15980134,131.67,131.65,6.93271537]
[1763959208430,0.15980134,131.67,131.64,6.93271537]
[1763959208856,0.15980134,131.67,131.63,6.93271537]
[1763959209045,0.69,131.66,131.63,6.93271537]
[1763959209853,0.69,131.66,131.64,6.93271537]
[1763959210062,0.69,131.66,131.62,21.50096]
[1763959210259,0.69,131.66,131.63,6.93271537]
[1763959210761,0.69,131.66,131.64,6.93271537]
[1763959212540,0.69,131.66,131.63,2.96035092]
[1763959213649,0.69,131.66,131.64,2.96035092]
[1763959213856,0.69,131.66,131.65,2.96035092]
[1763959214551,0.69,131.66,131.64,2.96035092]
[1763959214961,0.69,131.66,131.63,2.96035092]
[1763959215532,0.69,131.66,131.62,67.61187671]
[1763959215763,0.69,131.66,131.63,2.96035092]
[1763959216060,0.68,131.66,131.64,2.96035092]
[1763959216542,0.68,131.66,131.62,64.65152579]
[1763959216747,0.68,131.66,131.62,61.27152579]
[1763959216955,0.68,131.66,131.62,64.23187671]
[1763959217462,0.15131703,131.64,131.63,2.96035092]
[1763959217840,0.83131703,131.64,131.63,2.96035092]
[1763959218159,0.15131703,131.64,131.63,2.96035092]
[1763959218465,0.83131703,131.64,131.63,2.96035092]
[1763959218860,0.15131703,131.64,131.63,64.23187671]
[1763959219165,0.83131703,131.64,131.63,64.23187671]
[1763959220344,0.15131703,131.64,131.63,64.23187671]
[1763959221057,0.15131703,131.64,131.63,64.92187671]
[1763959221260,0.15131703,131.64,131.63,72.58863428]
[1763959221637,0.15131703,131.64,131.63,73.27863428]
[1763959221838,0.15131703,131.64,131.63,64.99158194]
[1763959222277,0.15131703,131.64,131.63,72.58863428]
[1763959222765,0.15131703,131.64,131.63,66.655405]
[1763959223845,0.15131703,131.64,131.63,65.89569977]
[1763959224440,0.15131703,131.64,131.63,69.27569977]
[1763959224647,0.15131703,131.64,131.63,64.65152579]
[1763959224845,0.15131703,131.64,131.63,8.00417398]
[1763959225071,0.15131703,131.64,131.63,15.60122632]
[1763959225559,0.15131703,131.64,131.63,16.36093155]
[1763959227281,0.15131703,131.64,131.63,4.62417398]
[1763959227282,0.83131703,131.64,131.63,4.62417398]
[1763959228172,0.83131703,131.64,131.62,26.12513398]
[1763959228491,0.83131703,131.64,131.62,4.62417398]
[1763959229464,0.83131703,131.64,131.61,18.12096]
[1763959229665,0.83131703,131.64,131.63,4.62417398]
[1763959230798,0.15131703,131.64,131.63,4.62417398]
[1763959232581,0.15131703,131.64,131.63,67.48387921]
[1763959232792,0.15131703,131.64,131.63,93.89189155]
[1763959233162,0.15369959,131.65,131.63,75.77093155]
[1763959233457,0.15369959,131.65,131.64,26.81513398]
[1763959234082,0.15369959,131.65,131.64,26.12513398]
[1763959234382,0.15369959,131.65,131.64,26.81513398]
[1763959234568,0.15369959,131.65,131.64,34.41160921]
[1763959234966,0.83369959,131.65,131.64,21.50096]
[1763959235270,0.83369959,131.65,131.62,62.1]
[1763959235470,0.15369959,131.65,131.64,4.62417398]
[1763959235710,0.15369959,131.65,131.64,26.81513398]
[1763959236375,0.15369959,131.65,131.64,88.91513398]
[1763959236590,0.15369959,131.65,131.64,96.51160921]
[1763959237099,0.15369959,131.65,131.64,95.82160921]
[1763959237274,0.30677376,131.65,131.64,96.51160921]
[1763959238496,0.30677376,131.65,131.64,34.41160921]
[1763959239300,0.15307417,131.65,131.64,29.78743523]
[1763959239599,0.15307417,131.65,131.64,34.41160921]
[1763959240105,0.15307417,131.65,131.64,96.51160921]
[1763959241597,0.15307417,131.65,131.64,97.27125673]
[1763959241897,0.15307417,131.65,131.64,92.64708275]
[1763959242294,0.15307417,131.65,131.64,97.27125673]
[1763959244508,0.15307417,131.65,131.64,96.58125673]
[1763959245205,0.15307417,131.65,131.64,97.25125673]
[1763959245504,0.16286339,131.67,131.66,61.78489879]
[1763959245681,0.16286339,131.67,131.66,171.78907277]
[1763959248306,0.83286339,131.67,131.66,171.78907277]
[1763959253799,0.16286339,131.67,131.66,171.78907277]
[1763959255005,0.83286339,131.67,131.66,171.78907277]
[1763959255508,0.16286339,131.67,131.66,171.78907277]
[1763959255895,0.16286339,131.67,131.66,172.47907277]
[1763959256202,0.16286339,131.67,131.66,179.38439405]
[1763959256897,0.16286339,131.67,131.66,171.78907277]
[1763959257414,0.30271288,131.67,131.66,171.78907277]
[1763959259397,0.13984949,131.67,131.66,171.78907277]
[1763959260006,0.80984949,131.67,131.66,171.78907277]
[1763959260208,0.80984949,131.67,131.65,4.62417398]
[1763959260421,0.80984949,131.67,131.64,8.00417398]
[1763959260911,0.80984949,131.67,131.63,18.12096]
[1763959261106,0.80984949,131.67,131.63,4.62417398]
[1763959261310,0.80984949,131.67,131.62,4.62417398]
[1763959262191,0.80984949,131.67,131.63,4.62417398]
[1763959262712,0.13984949,131.67,131.66,22.74513398]
[1763959263114,0.13984949,131.67,131.66,23.5046661]
[1763959264097,0.80984949,131.67,131.66,23.5046661]
[1763959264290,0.13984949,131.67,131.66,23.5046661]
[1763959271026,0.80984949,131.67,131.66,0.75953212]
[1763959271326,0.80984949,131.67,131.66,4.62417398]
[1763959272219,0.80984949,131.67,131.66,66.40907277]
[1763959276222,0.80984949,131.67,131.66,61.78489879]
[1763959276525,0.13984949,131.67,131.66,66.40907277]
[1763959276927,0.83984949,131.67,131.66,66.40907277]
[1763959277424,0.99086599,131.67,131.66,66.40907277]
[1763959277605,0.29086599,131.67,131.66,66.40907277]
[1763959278704,0.99086599,131.67,131.66,66.40907277]
[1763959279335,0.8510165,131.67,131.66,66.40907277]
[1763959282531,0.8510165,131.67,131.66,64.74386065]
[1763959286133,0.8510165,131.67,131.66,61.06489879]
[1763959286336,0.8510165,131.67,131.58,22.90077527]
[1763959286657,18.12096,131.64,131.57,2.95896186]
[1763959286808,2.95896186,131.61,131.56,2.95896186]
[1763959287014,2.95896186,131.61,131.55,3.05896186]
[1763959287314,0.7,131.6,131.56,2.95896186]
[1763959287614,0.7,131.6,131.58,2.95896186]
[1763959288005,0.7,131.6,131.57,2.95896186]
[1763959288211,0.7,131.6,131.58,2.95896186]
[1763959290427,3.65896186,131.6,131.55,0.1]
[1763959290935,0.7,131.59,131.56,2.95896186]
[1763959291246,0.7,131.59,131.57,2.95896186]
[1763959291733,0.7,131.59,131.56,2.95896186]
[1763959291936,0.7,131.59,131.55,18.22096]
[1763959292142,0.7,131.59,131.55,18.94096]
[1763959292730,2.95896186,131.64,131.58,2.95896186]
[1763959292935,0.7,131.6,131.58,2.95896186]
[1763959293536,0.7,131.6,131.59,2.95896186]
[1763959294444,0.7,131.6,131.58,2.95896186]
[1763959296826,0.7,131.6,131.59,2.95896186]
[1763959297433,0.86576712,131.6,131.59,2.95896186]
[1763959298060,0.16576712,131.6,131.59,3.67896186]
[1763959299032,0.16576712,131.6,131.59,2.95896186]
[1763959299950,0.16576712,131.6,131.59,3.67896186]
[1763959301441,0.15612998,131.61,131.59,14.99722153]
[1763959301641,0.14768628,131.62,131.6,24.75888372]
[1763959301823,0.14768628,131.62,131.61,7.09878254]
[1763959302025,0.14768628,131.62,131.61,7.81878254]
[1763959303424,0.14768628,131.62,131.61,15.41698936]
[1763959304857,0.14212981,131.63,131.61,15.41698936]
[1763959305058,0.13848741,131.64,131.63,18.12096]
[1763959305351,0.13848741,131.64,131.63,29.43667943]
[1763959305533,0.13848741,131.64,131.63,30.10667943]
[1763959306453,0.16657589,131.65,131.63,30.10667943]
[1763959306664,0.16657589,131.65,131.64,7.01896186]
[1763959307759,0.16657589,131.65,131.64,6.33896186]
[1763959308356,0.83657589,131.65,131.64,3.38]
[1763959308542,0.83657589,131.65,131.64,6.33896186]
[1763959308937,0.83657589,131.65,131.64,3.38]
[1763959309144,0.83657589,131.65,131.64,6.33896186]
[1763959310242,0.83657589,131.65,131.64,2.95896186]
[1763959310833,0.83657589,131.65,131.64,64.02386065]
[1763959311257,0.83657589,131.65,131.64,61.06489879]
[1763959314365,0.16657589,131.65,131.64,3.63896186]
[1763959314665,0.16657589,131.65,131.64,2.95896186]
[1763959315764,0.16657589,131.65,131.64,3.63896186]
[1763959317279,0.16657589,131.65,131.64,29.35639709]
[1763959317458,0.33118983,131.65,131.64,29.35639709]
[1763959319349,0.16461394,131.65,131.64,29.35639709]
[1763959320372,0.16461394,131.65,131.64,21.75992186]
[1763959320555,0.16461394,131.65,131.64,29.35639709]
[1763959323173,0.14147933,131.67,131.66,18.12096]
[1763959323351,0.14147933,131.67,131.66,86.04020671]
[1763959325061,0.14147933,131.67,131.66,93.63552799]
[1763959325258,0.14147933,131.67,131.66,92.95552799]
[1763959325466,0.14147933,131.67,131.66,86.04020671]
[1763959328663,0.15538286,131.68,131.67,60.75880552]
[1763959328863,0.15538286,131.68,131.67,63.71776738]
[1763959329061,0.15538286,131.68,131.67,64.47724182]
[1763959330161,0.15538286,131.68,131.67,174.75198625]
[1763959330360,0.15538286,131.68,131.67,173.99251181]
[1763959330561,0.16141366,131.69,131.67,176.95147367]
[1763959330762,0.16141366,131.69,131.68,10.73734048]
[1763959330971,0.83141366,131.69,131.67,165.71776738]
[1763959331181,0.83141366,131.69,131.67,162.75880552]
[1763959331582,0.83141366,131.69,131.64,3.38]
[1763959331882,0.83141366,131.69,131.66,2.95896186]
[1763959333085,0.83141366,131.69,131.64,3.38]